bitfinex-derivatives/quotes_ETHF0:USTF0_20210110
["timestamp","ask_amount","ask_price","bid_price","bid_amount"]
[1610278796961,4.00959,1285.4,1285.3,2.85335611]
[1610278797160,4.00959,1285.4,1284.9,3.32891546]
[1610278797361,4.00959,1285.4,1285.2,3.3280272]
[1610278797560,4.00959,1285.4,1284.8,1.7476]
[1610278797964,4.00959,1285.4,1284.8,5.55057924]
[1610278798361,4.00959,1284.9,1284.8,5.55057924]
[1610278798562,4.00959,1284.9,1284.8,1.7476]
[1610278799562,4.00959,1284.9,1284.6,3.80277596]
[1610278799763,4.00959,1284.9,1284.5,3.80310205]
[1610278800164,4.00959,1284.9,1284.4,3.8030606]
[1610278800364,4.00959,1284.5,1284.3,2.1869]
[1610278800764,4.00959,1284.5,1284.4,3.80358632]
[1610278802366,4.00959,1284.5,1284.3,2.1869]
[1610278802766,4.00959,1284.5,1283.9,8.28837918]
[1610278802968,4.00959,1284.5,1283.9,4.00959]
[1610278803169,4.00959,1284.5,1284.3,3.80404682]
[1610278804675,4.00959,1284.5,1284.2,3.80449376]
[1610278804874,4.00959,1284.5,1284.1,1.5098]
[1610278805276,4.00959,1284.5,1283.9,3.80502964]
[1610278805477,4.00959,1284.5,1283.9,3.80505547]
[1610278806378,4.00959,1284.0,1283.9,3.80505547]
[1610278806778,4.00959,1284.0,1283.8,3.8053438]
[1610278807178,1.943,1284.9,1283.7,1.9461]
[1610278807179,1.943,1284.9,1283.9,3.80515965]
[1610278807579,1.943,1284.9,1284.7,3.32923516]
[1610278807780,1.943,1284.9,1284.8,3.32904971]
[1610278808381,5.95259,1284.9,1284.8,3.32904971]
[1610278808880,5.95259,1284.9,1284.7,3.32919922]
[1610278809480,5.95259,1284.9,1284.6,3.32954083]
[1610278809880,5.95259,1284.9,1284.5,3.32967161]
[1610278810282,4.00959,1284.6,1284.5,3.32967161]
[1610278810484,4.00959,1284.6,1284.4,3.3299021]
[1610278810681,5.84259,1284.6,1284.4,3.3299021]
[1610278810883,5.84259,1284.6,1284.3,3.32995864]
[1610278812282,4.00959,1284.4,1284.3,3.32995864]
[1610278812882,4.00959,1284.4,1284.2,3.33035961]
[1610278813281,4.00959,1284.4,1283.6,3.8060618]
[1610278813282,4.00959,1284.4,1284.3,3.33021233]
[1610278813682,4.00959,1284.4,1284.2,3.33027157]
[1610278816583,4.00959,1284.4,1284.1,3.33074175]
[1610278817683,4.00959,1284.4,1284.2,3.33063185]
[1610278817884,4.00959,1284.4,1284.3,3.33040652]
[1610278818486,1.9067,1285.2,1284.2,5.69899]
[1610278818684,1.7373,1285.5,1284.2,5.69899]
[1610278818884,10.216,1286.5,1284.2,5.69899]
[1610278818885,40.216,1286.5,1285.1,2.85359159]
[1610278819084,40.216,1286.5,1285.4,2.3779222]
[1610278819283,94.9921,1285.6,1285.4,2.3779222]
[1610278819886,94.9921,1285.6,1285.5,1.90259761]
[1610278820085,94.9921,1285.6,1285.4,1.90273596]
[1610278820285,37.0396,1285.6,1285.4,1.90273596]
[1610278820485,4.00959,1285.5,1285.2,1.90280214]
[1610278820685,30.0,1285.4,1285.2,1.90280214]
[1610278821088,30.0,1285.4,1285.1,1.427419]
[1610278821486,30.0,1285.4,1285.0,1.42762242]
[1610278821685,30.0,1285.4,1285.1,1.42753101]
[1610278822487,4.00959,1285.2,1285.1,1.42753101]
[1610278822687,36.45979,1285.2,1285.1,1.42753101]
[1610278822887,36.45979,1285.2,1283.9,3.330796]
[1610278822888,36.45979,1285.2,1285.0,1.42761692]
[1610278823288,36.45979,1285.2,1284.9,1.42768799]
[1610278823488,36.45979,1285.2,1284.8,1.42785556]
[1610278823888,36.45979,1285.2,1284.7,1.42802766]
[1610278824288,36.45979,1285.2,1284.1,2.3800461]
[1610278824289,36.45979,1285.2,1284.6,1.42804015]
[1610278824488,5.99729,1284.7,1284.6,1.42804015]
[1610278824689,5.99729,1284.7,1284.4,1.90386345]
[1610278824888,5.99729,1284.7,1284.6,1.90382378]
[1610278825088,35.99729,1284.7,1284.6,1.90382378]
[1610278825688,35.99729,1284.7,1284.5,1.90388402]
[1610278825888,5.99729,1284.7,1284.4,1.90393304]
[1610278826291,5.99729,1284.7,1284.5,1.90385865]
[1610278826490,5.99729,1284.7,1284.6,1.90379064]
[1610278827289,5.99729,1284.7,1284.4,2.3796711]
[1610278827489,5.99729,1284.7,1284.5,2.37931781]
[1610278827790,30.0,1284.6,1284.5,2.37931781]
[1610278828190,30.0,1284.6,1284.4,2.3796124]
[1610278828391,4.00959,1284.5,1284.4,2.3796124]
[1610278828592,4.00959,1284.5,1284.3,2.37974756]
[1610278829491,4.00959,1284.5,1284.4,2.3797081]
[1610278829691,34.00959,1284.5,1284.4,2.3797081]
[1610278829891,34.00959,1284.5,1284.2,2.37991748]
[1610278830295,34.00959,1284.5,1284.3,1.90411203]
[1610278830695,4.00959,1284.5,1284.3,1.90411203]
[1610278830894,34.00959,1284.5,1284.3,1.90411203]
[1610278831094,4.00959,1284.5,1284.3,1.90411203]
[1610278831295,4.00959,1284.5,1284.4,1.90399792]
[1610278831694,4.00959,1284.5,1284.2,2.37964866]
[1610278832095,4.00959,1284.5,1284.3,2.37979695]
[1610278833196,30.0,1284.4,1284.3,2.37979695]
[1610278833395,31.8682,1284.4,1284.3,2.37979695]
[1610278833595,31.8682,1284.4,1284.2,2.37991325]
[1610278833798,31.8682,1284.4,1284.3,1.90403138]
[1610278834196,1.8682,1284.4,1284.2,1.9042674]
[1610278834401,4.00959,1284.3,1284.2,1.9042674]
[1610278834798,4.00959,1284.3,1284.2,2.37998642]
[1610278835498,34.00959,1284.3,1284.2,2.37998642]
[1610278836199,34.00959,1284.3,1284.1,2.37999043]
[1610278836601,4.00959,1284.3,1284.2,1.90431781]
[1610278836801,34.00959,1284.3,1284.2,1.90431781]
[1610278837606,34.00959,1284.3,1284.1,1.42866746]
[1610278838006,34.00959,1284.3,1284.0,1.42885422]
[1610278838207,34.00959,1284.3,1283.9,1.42897284]
[1610278838406,4.00959,1284.0,1283.9,1.42897284]
[1610278838606,36.19889,1284.0,1283.8,1.42913933]
[1610278838806,36.19889,1284.0,1283.7,1.42919611]
[1610278839207,36.19889,1284.0,1283.5,1.4292531]
[1610278839806,36.19889,1284.0,1283.4,1.42968459]
[1610278840406,4.00959,1283.5,1283.4,1.42968459]
[1610278840606,35.64429,1283.5,1283.4,1.42968459]
[1610278842008,35.64429,1283.5,1283.2,1.90627952]
[1610278842308,35.64429,1283.5,1283.4,1.42971399]
[1610278842710,5.64429,1283.5,1283.4,1.42971399]
[1610278843310,5.64429,1283.5,1283.3,1.90628409]
[1610278844115,4.00959,1283.5,1283.3,2.38206496]
[1610278844313,4.00959,1283.5,1281.3,4.28771694]
[1610278844314,4.00959,1283.5,1283.4,2.38191243]
[1610278844916,4.00959,1283.5,1283.3,2.85807332]
[1610278845316,4.00959,1283.5,1283.4,2.85786113]
[1610278845517,4.00959,1283.5,1283.1,3.3339656]
[1610278845916,4.00959,1283.5,1283.4,2.85780863]
[1610278846317,4.00959,1283.5,1283.3,2.85792691]
[1610278846919,4.00959,1283.5,1283.4,2.85761469]
[1610278847320,4.00959,1283.5,1283.1,3.33358851]
[1610278847521,4.00959,1283.5,1283.3,3.33329677]
[1610278847921,4.00959,1283.5,1283.4,3.33306599]
[1610278848121,1.9877,1284.7,1283.4,3.33306599]
[1610278848321,10.216,1285.5,1283.4,3.33306599]
[1610278848522,4.00959,1283.6,1283.5,4.00959]
[1610278849122,4.00959,1283.6,1283.3,1.8502]
[1610278850126,3.50959,1283.6,1283.3,1.8502]
[1610278850527,4.00959,1283.4,1283.3,1.8502]
[1610278853127,4.00959,1283.4,1283.0,2.2681]
[1610278853332,4.00959,1283.4,1282.7,5.53556146]
[1610278853728,4.00959,1283.4,1283.2,3.33305784]
[1610278854428,4.00959,1283.4,1283.1,5.40295126]
[1610278855028,4.00959,1283.4,1283.2,3.33322557]
[1610278855227,4.00959,1283.4,1283.3,3.33287307]
[1610278855628,4.00959,1283.4,1283.1,2.0696]
[1610278856432,4.00959,1283.4,1283.3,4.00959]
[1610278856630,2.0497,1284.1,1283.3,4.00959]
[1610278857031,2.1931,1285.1,1283.8,3.33196773]
[1610278857232,39.0764,1286.1,1283.8,3.33196773]
[1610278857431,39.0764,1286.1,1284.8,1.90382229]
[1610278857832,39.0764,1286.1,1285.1,1.4278107]
[1610278858032,39.0764,1286.1,1284.4,1.5117]
[1610278858033,39.0764,1286.1,1285.2,1.42772777]
[1610278858535,4.00959,1285.3,1285.2,1.42772777]
[1610278858732,36.02569,1285.3,1285.1,1.427823]
[1610278859132,36.02569,1285.3,1284.9,1.903764]
[1610278859133,36.02569,1285.3,1284.9,1.42789578]
[1610278859735,6.02569,1285.3,1284.9,1.42789578]
[1610278859933,36.02569,1285.3,1284.9,1.42789578]
[1610278860534,4.00959,1285.0,1284.9,1.42789578]
[1610278860733,5.88359,1285.0,1284.8,1.42796403]
[1610278861535,35.88359,1285.0,1284.8,1.42796403]
[1610278861735,35.88359,1285.0,1284.7,1.42802716]
[1610278862338,35.88359,1285.0,1284.6,1.42819408]
[1610278862534,4.00959,1284.7,1284.6,1.42819408]
[1610278862735,6.27269,1284.7,1284.6,1.42819408]
[1610278863336,36.27269,1284.7,1284.4,1.90426799]
[1610278863735,36.27269,1284.7,1284.5,1.42828119]
[1610278863935,36.27269,1284.7,1284.4,1.42843178]
[1610278864538,4.00959,1284.5,1284.4,1.42843178]
[1610278864740,4.00959,1284.5,1284.3,1.42849497]
[1610278864941,34.00959,1284.5,1284.3,1.42849497]
[1610278865340,34.00959,1284.5,1284.2,1.42879341]
[1610278865741,34.00959,1284.5,1284.0,1.42884465]
[1610278866140,34.00959,1284.5,1283.7,1.90512621]
[1610278866141,34.00959,1284.5,1283.9,1.42894858]
[1610278866542,4.00959,1284.0,1283.9,1.42894858]
[1610278866742,6.11639,1284.0,1283.9,1.42894858]
[1610278867343,6.11639,1284.0,1283.7,1.9051403]
[1610278867744,6.11639,1284.0,1283.8,1.90496694]
[1610278868142,6.11639,1284.0,1283.9,1.9049333]
[1610278869042,6.11639,1284.0,1283.8,2.38094651]
[1610278869443,6.11639,1284.0,1283.7,2.38094798]
[1610278869646,28.09499254,1283.9,1283.6,2.38125933]
[1610278870042,28.09499254,1283.9,1283.3,2.3815665]
[1610278870243,28.09499254,1283.9,1283.2,2.38180456]
[1610278870643,4.00959,1283.3,1283.2,2.38180456]
[1610278871444,4.00959,1283.3,1283.0,2.85812966]
[1610278872044,32.10458254,1283.3,1283.0,2.85812966]
[1610278872445,32.10458254,1283.3,1283.1,2.38229134]
[1610278872646,32.10458254,1283.3,1282.9,2.38242411]
[1610278873045,32.10458254,1283.3,1282.0,1.5789]
[1610278873046,32.10458254,1283.3,1282.8,2.38266114]
[1610278873445,32.10458254,1283.3,1282.7,2.38278163]
[1610278873645,32.10458254,1283.3,1282.6,2.38290833]
[1610278874046,32.10458254,1283.3,1282.5,2.38295517]
[1610278874546,4.00959,1282.6,1282.5,2.38295517]
[1610278874946,32.10458254,1282.6,1282.4,2.38315911]
[1610278875748,32.10458254,1282.6,1282.3,2.38351943]
[1610278876248,32.10458254,1282.6,1280.4,4.29033498]
[1610278876249,32.10458254,1282.6,1282.2,2.38387581]
[1610278876647,32.10458254,1282.6,1281.5,3.33750265]
[1610278876648,4.00959,1282.3,1282.1,2.38401389]
[1610278876848,28.09499254,1282.2,1282.1,2.38401389]
[1610278877048,28.09499254,1282.2,1280.1,4.29122501]
[1610278877049,30.10329254,1282.2,1281.9,2.38435164]
[1610278877351,30.10329254,1282.2,1281.8,2.38436773]
[1610278878156,2.0083,1282.2,1281.8,2.38436773]
[1610278878356,2.0083,1282.2,1281.7,2.38473208]
[1610278878556,4.00959,1281.8,1281.7,2.38473208]
[1610278878757,5.75109,1281.8,1281.7,2.38473208]
[1610278879358,33.84608254,1281.8,1281.7,2.38473208]
[1610278879757,33.84608254,1281.8,1281.5,2.86159997]
[1610278879758,33.84608254,1281.8,1281.5,2.38531952]
[1610278879957,33.84608254,1281.8,1281.5,1.90849128]
[1610278880159,5.75109,1281.8,1281.5,1.90849128]
[1610278880559,4.00959,1281.6,1281.5,1.90849128]
[1610278880959,4.00959,1281.6,1281.3,2.38544184]
[1610278881158,34.00959,1281.6,1281.3,2.38544184]
[1610278881563,4.00959,1281.6,1281.3,2.38544184]
[1610278881761,4.00959,1281.6,1281.4,1.90835161]
[1610278881959,34.00959,1281.6,1281.4,1.90835161]
[1610278882160,34.00959,1281.6,1281.5,1.90845228]
[1610278882360,34.00959,1281.6,1281.3,1.90866536]
[1610278882560,4.00959,1281.4,1281.3,1.90866536]
[1610278882760,36.00489,1281.4,1281.1,1.90878365]
[1610278883164,36.00489,1281.4,1281.0,1.90886249]
[1610278883561,36.00489,1281.4,1281.1,1.90880601]
[1610278884167,36.00489,1281.4,1281.0,1.90907579]
[1610278884365,6.00489,1281.4,1281.0,1.90907579]
[1610278884566,4.00959,1281.1,1280.9,1.90921197]
[1610278884965,34.00959,1281.1,1280.9,1.90921197]
[1610278885165,34.00959,1281.1,1281.0,1.9090946]
[1610278885767,34.00959,1281.1,1280.9,1.90909366]
[1610278885968,40.53249,1281.1,1280.8,1.9091429]
[1610278886165,35.84659,1281.1,1280.8,1.9091429]
[1610278886365,35.84659,1281.1,1280.7,1.90925015]
[1610278886565,4.00959,1280.8,1280.7,1.90925015]
[1610278886767,6.32669,1280.8,1280.7,1.90925015]
[1610278886965,6.32669,1280.8,1280.6,1.90946346]
[1610278887365,6.32669,1280.8,1280.6,2.38657744]
[1610278888367,6.32669,1280.8,1280.7,1.90940856]
[1610278888565,6.32669,1280.8,1280.6,1.90940189]
[1610278888965,6.32669,1280.8,1280.7,1.90950431]
[1610278889566,36.32669,1280.8,1280.7,1.90950431]
[1610278889766,36.32669,1280.8,1280.6,1.90974122]
[1610278890166,36.32669,1280.8,1280.4,1.90989843]
[1610278890565,4.00959,1280.5,1280.3,1.90993377]
[1610278890765,6.49739,1280.5,1280.3,1.90993377]
[1610278891169,6.49739,1280.5,1278.8,3.81996028]
[1610278891170,6.49739,1280.5,1280.2,1.91022953]
[1610278891565,6.49739,1280.5,1279.9,1.91042061]
[1610278891965,5.9893,1280.4,1279.9,1.91042061]
[1610278892170,36.49739,1280.5,1279.9,1.91042061]
[1610278892365,36.49739,1280.5,1279.8,1.91041488]
[1610278892565,4.00959,1279.9,1279.8,1.91041488]
[1610278892966,6.47329,1279.9,1279.7,1.91069818]
[1610278893367,30.0,1279.8,1279.5,1.91077806]
[1610278893569,30.0,1279.8,1279.4,1.91129554]
[1610278893970,5.9339,1279.8,1279.4,1.91129554]
[1610278894369,5.9339,1279.8,1279.3,1.91141001]
[1610278894568,4.00959,1279.4,1279.3,1.91141001]
[1610278894768,6.40659,1279.4,1279.3,1.91141001]
[1610278894969,6.40659,1279.4,1279.0,2.8666178]
[1610278895168,6.40659,1279.4,1279.1,2.86651027]
[1610278895768,6.40659,1279.4,1279.2,2.8663698]
[1610278897370,6.40659,1279.4,1279.1,2.86668961]
[1610278898570,4.00959,1279.2,1278.9,2.86698161]
[1610278898772,4.00959,1279.2,1278.8,2.86735492]
[1610278899171,4.00959,1279.2,1278.7,2.86750862]
[1610278899571,34.00959,1279.2,1278.7,2.86750862]
[1610278899971,34.00959,1279.2,1278.5,2.86783422]
[1610278900172,4.00959,1279.2,1279.0,1.91198119]
[1610278900371,34.00959,1279.2,1279.0,1.91198119]
[1610278900571,34.00959,1279.2,1277.7,2.2145]
[1610278900572,34.00959,1279.2,1278.9,1.91205886]
[1610278900971,34.00959,1279.2,1278.8,1.91216796]
[1610278901373,34.00959,1279.2,1277.7,2.2145]
[1610278901374,34.00959,1279.2,1278.7,1.91229919]
[1610278901771,34.00959,1279.2,1278.6,1.91268743]
[1610278902173,34.00959,1279.2,1278.4,1.91290314]
[1610278902571,4.00959,1278.5,1278.4,1.91290314]
[1610278902971,6.01259,1278.5,1278.4,1.91290314]
[1610278903173,6.01259,1278.5,1278.2,2.39137157]
[1610278903574,6.01259,1278.5,1278.3,2.39051635]
[1610278903974,4.00959,1278.5,1278.3,1.6832]
[1610278904574,4.00959,1278.5,1278.3,5.0291907]
[1610278905774,4.00959,1278.5,1278.4,3.34531771]
[1610278905975,3.80959,1278.5,1278.4,3.34531771]
[1610278906374,3.80959,1278.5,1278.3,1.6832]
[1610278908978,2.4637,1279.9,1278.3,3.82159999]
[1610278909176,2.4637,1279.9,1278.3,5.94079999]
[1610278909374,62.174,1280.3,1278.3,5.94079999]
[1610278909575,62.174,1280.3,1279.6,2.38846591]
[1610278909775,62.174,1280.3,1279.6,4.36046591]
[1610278909975,62.174,1280.3,1280.2,1.91023365]
[1610278910176,62.174,1280.3,1280.1,2.387842]
[1610278910376,64.12,1280.3,1280.1,2.387842]
[1610278910575,64.12,1280.3,1280.0,2.38773759]
[1610278910775,4.00959,1280.2,1280.0,2.38773759]
[1610278911375,4.00959,1280.2,1280.1,1.91044937]
[1610278911976,4.00959,1280.2,1280.0,1.91066019]
[1610278912378,4.00959,1280.2,1279.1,3.34365533]
[1610278912379,4.00959,1280.2,1279.9,1.91056583]
[1610278912778,6.36439,1280.0,1279.7,2.38820728]
[1610278913175,6.36439,1280.0,1279.8,2.3881129]
[1610278914678,6.36439,1280.0,1279.9,2.3879128]
[1610278916580,6.36439,1280.0,1279.9,1.91094954]
[1610278916980,6.36439,1280.0,1279.0,3.34416169]
[1610278916981,6.36439,1280.0,1279.5,1.91117677]
[1610278917780,6.36439,1280.0,1279.4,1.91148947]
[1610278918180,6.36439,1280.0,1279.3,1.91138247]
[1610278918581,6.36439,1280.0,1279.5,1.91137395]
[1610278918780,4.00959,1279.6,1279.5,1.91137395]
[1610278918982,6.20439,1279.6,1279.5,1.91137395]
[1610278919181,6.20439,1279.6,1279.4,1.91156029]
[1610278919581,6.20439,1279.6,1278.9,2.86734043]
[1610278919582,6.20439,1279.6,1279.2,1.91187098]
[1610278919783,6.20439,1279.6,1279.0,1.91215086]
[1610278920382,6.20439,1279.6,1278.8,2.39018858]
[1610278920383,6.20439,1279.6,1279.1,1.91197329]
[1610278920783,4.00959,1279.2,1279.1,1.91197329]
[1610278920983,6.14489,1279.2,1278.9,2.38986744]
[1610278921383,6.14489,1279.2,1279.0,2.38970138]
[1610278921783,6.14489,1279.2,1279.1,2.38945433]
[1610278921986,6.14489,1279.2,1279.1,2.86699471]
[1610278922384,6.14489,1279.2,1278.8,3.34445716]
[1610278922583,6.14489,1279.2,1278.9,3.34379272]
[1610278922784,4.00959,1279.0,1278.9,3.34379272]
[1610278922983,4.00959,1279.0,1278.6,2.1762]
[1610278924386,4.00959,1279.0,1278.6,5.99687696]
[1610278924786,4.00959,1279.0,1278.8,4.00959]
[1610278925587,4.00959,1279.0,1278.9,3.82003571]
[1610278926189,4.00959,1279.0,1278.8,3.82012331]
[1610278927194,4.00959,1279.0,1278.9,3.81990753]
[1610278927594,4.00959,1279.0,1278.7,3.82035951]
[1610278928594,4.00959,1279.0,1278.8,3.81999061]
[1610278928793,4.00959,1279.0,1278.9,4.00959]
[1610278929594,4.00959,1279.0,1278.9,7.82974062]
[1610278929796,4.00959,1279.0,1278.9,4.00959]
[1610278930695,4.00959,1279.0,1278.8,3.82030126]
[1610278931896,2.3548,1280.0,1278.8,3.82030126]
[1610278932096,2.3548,1280.0,1279.0,3.81960368]
[1610278932298,46.8722,1280.4,1279.0,6.17690368]
[1610278932496,46.8722,1280.4,1279.7,3.34171603]
[1610278932696,4.00959,1279.8,1279.7,3.34171603]
[1610278932898,4.00959,1279.8,1279.4,2.2239]
[1610278933298,1.9423,1281.2,1279.4,2.2239]
[1610278933700,1.9423,1281.2,1281.1,1.90910699]
[1610278934100,1.9423,1281.2,1280.9,2.38605735]
[1610278934501,2.4344,1281.6,1281.1,2.38585237]
[1610278934699,4.00959,1281.2,1281.1,2.38585237]
[1610278935100,4.00959,1281.2,1281.0,2.86266934]
[1610278935701,4.00959,1281.2,1281.1,2.86265143]
[1610278936500,4.00959,1281.2,1281.0,2.86272349]
[1610278936700,4.00959,1281.2,1281.1,2.38591815]
[1610278937101,4.00959,1281.2,1280.9,2.38601498]
[1610278937304,4.00959,1281.2,1280.7,5.24960821]
[1610278937502,4.00959,1281.2,1281.0,1.90911218]
[1610278938505,4.00959,1281.2,1280.9,1.90958161]
[1610278938706,4.00959,1281.0,1280.7,1.90956954]
[1610278939104,6.18709,1281.0,1280.6,1.90977085]
[1610278939305,30.0,1280.9,1280.6,1.90977085]
[1610278939508,30.0,1280.9,1280.5,1.91006197]
[1610278939706,30.0,1280.9,1280.3,1.91038224]
[1610278940109,30.0,1280.9,1280.1,1.91047349]
[1610278940306,6.18709,1281.0,1280.1,1.91047349]
[1610278940509,6.18709,1281.0,1280.0,1.91054715]
[1610278940708,4.00959,1280.1,1279.9,1.91066627]
[1610278941111,4.00959,1280.1,1279.8,1.91076371]
[1610278941112,5.64899,1280.1,1279.8,1.91076371]
[1610278941808,5.64899,1280.1,1279.6,1.91127125]
[1610278942008,35.64899,1280.1,1279.6,1.91127125]
[1610278942410,51.4442,1279.6,1279.5,1.91149921]
[1610278942611,81.4442,1279.6,1279.2,2.38937401]
[1610278942810,4.00959,1279.3,1279.0,2.38988569]
[1610278943010,34.00959,1279.3,1279.0,2.38988569]
[1610278943211,34.00959,1279.3,1278.9,2.39136596]
[1610278943410,34.00959,1279.3,1278.0,2.39173054]
[1610278943809,34.00959,1279.3,1277.8,2.87007664]
[1610278943810,34.00959,1279.3,1277.8,2.39201219]
[1610278944011,35.69489,1279.3,1277.8,2.39201219]
[1610278944210,35.69489,1279.3,1277.5,2.39289573]
[1610278944410,35.69489,1279.3,1277.3,2.39309939]
[1610278944810,4.00959,1277.4,1277.2,2.39322382]
[1610278945010,36.04019,1277.4,1277.0,2.39345046]
[1610278945410,36.04019,1277.4,1276.9,2.39369771]
[1610278945610,36.04019,1277.4,1276.7,2.87214055]
[1610278945810,36.04019,1277.4,1276.5,2.87305237]
[1610278946210,36.04019,1277.4,1276.3,2.87331339]
[1610278946412,36.04019,1277.4,1275.9,2.87372358]
[1610278946810,4.00959,1276.0,1275.9,2.87372358]
[1610278947011,5.70539,1276.0,1275.9,2.87372358]
[1610278947211,5.70539,1276.0,1275.7,2.87393857]
[1610278947913,5.70539,1276.0,1275.6,2.87421238]
[1610278948312,5.70539,1276.0,1275.5,2.87426431]
[1610278948513,5.70539,1276.0,1275.4,2.8744797]
[1610278948713,4.00959,1275.5,1275.4,2.8744797]
[1610278949114,6.44219,1275.5,1275.3,2.87476259]
[1610278949714,6.44219,1275.5,1275.2,2.87522884]
[1610278950314,6.44219,1275.5,1275.1,2.87548124]
[1610278950714,6.44219,1275.5,1274.0,3.83397498]
[1610278950715,4.00959,1275.2,1275.0,2.87546525]
[1610278950914,5.59269,1275.2,1275.0,2.87546525]
[1610278951316,5.59269,1275.2,1274.9,2.8756133]
[1610278951718,5.59269,1275.2,1275.0,2.87550394]
[1610278951920,5.59269,1275.2,1274.9,2.87569609]
[1610278952319,5.59269,1275.2,1275.0,2.87555781]
[1610278952721,5.59269,1275.2,1274.8,3.35419377]
[1610278953122,4.00959,1275.2,1275.1,3.35389664]
[1610278953320,3.80959,1275.2,1275.1,3.35389664]
[1610278954821,3.80959,1275.2,1274.5,2.5035]
[1610278954822,3.80959,1275.2,1275.0,3.35390958]
[1610278955822,3.80959,1275.2,1274.9,3.35446333]
[1610278956022,3.80959,1275.2,1274.8,3.35460043]
[1610278956222,6.29639,1275.2,1274.8,3.35460043]
[1610278956423,6.29639,1275.2,1275.0,2.87580692]
[1610278957023,6.29639,1275.2,1275.0,2.3971024]
[1610278957223,6.29639,1275.2,1274.7,2.39708816]
[1610278957825,6.29639,1275.2,1274.5,2.39775172]
[1610278958228,36.29639,1275.2,1274.3,2.39806933]
[1610278958628,36.29639,1275.2,1274.1,2.39869756]
[1610278958828,36.29639,1275.2,1273.8,2.39903069]
[1610278958829,4.00959,1274.4,1273.8,2.39903069]
[1610278959027,6.15239,1274.4,1273.8,2.39903069]
[1610278959228,6.15239,1274.4,1272.6,3.8384491]
[1610278959229,6.15239,1274.4,1273.7,2.39926483]
[1610278959428,36.15239,1274.4,1273.7,2.39926483]
[1610278959828,6.15239,1274.4,1273.7,2.39926483]
[1610278960028,6.15239,1274.4,1273.5,2.39939432]
[1610278960428,6.15239,1274.4,1272.9,3.35915205]
[1610278960429,6.15239,1274.4,1273.6,2.39909555]
[1610278960631,6.15239,1274.4,1273.9,2.39884626]
[1610278960829,4.00959,1274.0,1273.9,2.39884626]
[1610278961028,4.00959,1274.0,1273.7,2.87842587]
[1610278961428,4.00959,1274.0,1273.8,2.87834191]
[1610278962229,4.00959,1274.0,1273.7,2.87852759]
[1610278962429,4.00959,1274.0,1273.8,2.39934731]
[1610278962830,4.00959,1274.0,1273.5,2.39977694]
[1610278963031,4.00959,1274.0,1273.3,2.39989292]
[1610278963434,4.00959,1274.0,1273.2,2.40001598]
[1610278963631,34.00959,1274.0,1273.2,2.40001598]
[1610278963831,34.00959,1274.0,1272.9,2.88001918]
[1610278963832,34.00959,1274.0,1273.1,2.40015044]
[1610278964031,34.00959,1274.0,1271.8,3.84024071]
[1610278964032,34.00959,1274.0,1273.0,2.40036081]
[1610278964432,34.00959,1274.0,1272.8,2.40085019]
[1610278964632,34.00959,1274.0,1272.7,2.40162254]
[1610278964832,4.00959,1272.8,1272.7,2.40162254]
[1610278965034,4.00959,1272.8,1272.3,2.40175101]
[1610278965035,5.63779,1272.8,1272.3,2.40175101]
[1610278965432,5.63779,1272.8,1272.2,2.40210399]
[1610278965832,5.63779,1272.8,1272.1,2.40209681]
[1610278966033,5.63779,1272.8,1271.9,2.88252479]
[1610278966234,5.63779,1272.8,1272.2,2.40203076]
[1610278966432,5.63779,1272.8,1271.9,2.88252479]
[1610278966433,5.63779,1272.8,1272.3,2.40191796]
[1610278966832,1.6282,1272.8,1272.6,1.92151505]
[1610278967233,1.6282,1272.8,1272.7,1.92135109]
[1610278967434,1.6282,1272.8,1272.5,2.40148325]
[1610278968434,1.6282,1272.8,1272.7,2.40141813]
[1610278968833,5.63779,1272.8,1272.5,2.88114887]
[1610278969033,5.63779,1272.8,1272.6,2.88106864]
[1610278970035,5.63779,1272.8,1272.5,3.36053398]
[1610278970435,5.43779,1272.8,1272.0,3.83993941]
[1610278970635,4.00959,1272.8,1272.0,3.83993941]
[1610278970835,4.00959,1273.1,1272.6,4.00959]
[1610278971036,4.00959,1273.1,1272.6,6.38299]
[1610278971634,4.00959,1273.1,1272.6,2.3734]
[1610278972835,4.00959,1272.7,1272.1,2.3578]
[1610278973236,6.35129,1272.7,1272.1,2.3578]
[1610278973838,6.35129,1272.7,1271.3,4.3203208]
[1610278974636,6.35129,1272.7,1271.2,4.32060972]
[1610278974836,4.00959,1271.3,1271.2,4.32060972]
[1610278975036,4.00959,1271.3,1270.9,4.32150667]
[1610278975436,4.00959,1271.3,1269.0,6.1469]
[1610278975437,4.00959,1271.3,1270.7,4.32184186]
[1610278976037,4.00959,1271.3,1270.5,4.32174287]
[1610278976439,4.00959,1271.3,1270.4,4.32234935]
[1610278976837,4.00959,1270.5,1270.3,4.32334591]
[1610278977037,4.00959,1270.5,1270.1,4.00959]
[1610278977038,4.00959,1270.5,1270.1,4.32364099]
[1610278977436,4.00959,1270.5,1270.0,4.32348729]
[1610278977637,4.00959,1270.5,1269.8,4.32424233]
[1610278978038,4.00959,1270.5,1269.7,4.32458715]
[1610278978437,4.00959,1270.5,1269.6,4.32472198]
[1610278978640,4.00959,1270.5,1269.5,4.32498915]
[1610278978837,4.00959,1270.2,1269.5,8.33457915]
[1610278979039,4.00959,1270.2,1269.6,4.32465302]
[1610278979438,4.00959,1270.2,1269.7,4.32446989]
[1610278979638,2.489,1270.6,1269.7,4.32446989]
[1610278979839,2.1926,1270.9,1269.7,1.8753]
[1610278980038,6.20631704,1274.4,1269.8,4.32408197]
[1610278980441,5.9569,1274.3,1270.2,6.44430547]
[1610278980838,4.00959,1270.6,1270.4,4.00959]
[1610278981038,4.00959,1270.6,1270.4,4.32242411]
[1610278981438,4.00959,1270.6,1270.3,4.32224454]
[1610278982039,4.00959,1270.6,1270.2,6.44416608]
[1610278982440,4.00959,1270.6,1270.2,2.1214]
[1610278982642,4.00959,1270.6,1269.9,4.32464005]
[1610278982843,4.00959,1270.0,1269.9,4.32464005]
[1610278983046,4.00959,1270.0,1269.7,1.8753]
[1610278983443,4.00959,1270.0,1269.4,2.1878]
[1610278983444,4.00959,1270.0,1269.4,6.51552719]
[1610278983642,4.00959,1270.0,1269.4,2.1878]
[1610278984242,4.00959,1270.0,1268.9,4.3285306]